Workbook

Sheet Home Page
B5: How to Apply Same Formula to Multiple Cells in Excel
B7: Learn the methods to apply same formula to multiple cells in Excel. Read the article we provided and practice these in practice section.
B9: Prepared By | C9: Osman Goni Ridwan
B10: Reviewed By | C10: Masum Mahdy
B11: Last Update | C11: 31/22/2023
B12: Article Link | C12: How to Apply Same Formula to Multiple Cells in Excel
B14: Contents
B15: How to Apply Same Formula to Multiple Cells in Excel
B16: 1. Use the Fill Handle Tool (AutoFill Feature)
B17: 2. Using Copy-Paste Commands
B18: 3.1 Apply Formula to a Range of Cells with Ctrl + Enter
B19: 3.2 Apply Formula to Cells of a Column with Ctrl + D
B20: 3.3 Apply Formula to Cells Along a Row with Ctrl + R
B21: 4. Using Dynamic Arrays to Apply Same Formula to Multiple Cells
B22: 5. Convert Data to Excel Table to Apply Same Formula to Entire Column
B23: 6. Applying VBA to Apply Same Formula to Multiple Cells
B24: How to Apply Same Formula to Multiple Non-Adjacent Cells in Excel
B25: How to Apply Same Formula to Multiple Cells in Excel Based on Selection
B26: How to Copy a Range of Formulas Without Changing Cell References and Apply
B27: How Can We Change Formulas in Multiple Cells at Once
B29: Copyright © 2013-2023 ExcelDemy.com | All rights reserved.

Sheet 1. AutoFill
B1: How to Apply Same Formula to Multiple Cells in Excel
B3: Use AutoFill Feature to Copy a Formula to Multiple Cells | L3: Try Yourself!
B5: Order ID | C5: Seller | D5: Product | E5: Price | F5: Commission (10%) | G5: Gross Revenue | L5: Order ID | M5: Seller | N5: Product | O5: Price | P5: Commission (10%) | Q5: Gross Revenue
B6: ID-22001 | C6: Pittman | D6: Dell XPS 13 | E6: 999 | F6: =E6*0.1 -> 99.9 | G6: =E6-F6 -> 899.1 | L6: ID-22001 | M6: Pittman | N6: Dell XPS 13 | O6: 999 | P6: =O6*0.1 -> 99.9 | Q6: =O6-P6 -> 899.1
B7: ID-22002 | C7: Clinton | D7: MacBook Air | E7: 1499 | F7: =E7*0.1 -> 149.9 | G7: =E7-F7 -> 1349.1 | L7: ID-22002 | M7: Clinton | N7: MacBook Air | O7: 1499
B8: ID-22003 | C8: Chester | D8: Dell XPS 13 | E8: 999 | F8: 99.9 | G8: 899.1 | L8: ID-22003 | M8: Chester | N8: Dell XPS 13 | O8: 999
B9: ID-22004 | C9: Rodney | D9: Dell XPS 13 | E9: 999 | F9: 99.9 | G9: 899.1 | L9: ID-22004 | M9: Rodney | N9: Dell XPS 13 | O9: 999
B10: ID-22006 | C10: Pittman | D10: HP x360 | E10: 1199 | F10: 119.9 | G10: 1079.1 | L10: ID-22006 | M10: Pittman | N10: HP x360 | O10: 1199
B11: ID-22007 | C11: Pittman | D11: Dell XPS 13 | E11: 999 | F11: 99.9 | G11: 899.1 | L11: ID-22007 | M11: Pittman | N11: Dell XPS 13 | O11: 999
B12: ID-22008 | C12: Clinton | D12: HP x360 | E12: 1199 | F12: 119.9 | G12: 1079.1 | L12: ID-22008 | M12: Clinton | N12: HP x360 | O12: 1199
B13: ID-22009 | C13: Chester | D13: Asus Zephyrus | E13: 1299 | F13: 129.9 | G13: 1169.1 | L13: ID-22009 | M13: Chester | N13: Asus Zephyrus | O13: 1299
B14: ID-22010 | C14: Pittman | D14: MacBook Air | E14: 1599 | F14: 159.9 | G14: 1439.1 | L14: ID-22010 | M14: Pittman | N14: MacBook Air | O14: 1599
B15: ID-22011 | C15: Clinton | D15: MacBook Air | E15: 1599 | F15: 159.9 | G15: 1439.1 | L15: ID-22011 | M15: Clinton | N15: MacBook Air | O15: 1599
B16: ID-22012 | C16: Chester | D16: Lenovo X1 | E16: 799 | F16: 79.9 | G16: 719.1 | L16: ID-22012 | M16: Chester | N16: Lenovo X1 | O16: 799
B17: ID-22014 | C17: Chester | D17: Dell XPS 13 | E17: 1199 | F17: 119.9 | G17: 1079.1 | L17: ID-22014 | M17: Chester | N17: Dell XPS 13 | O17: 1199
B18: ID-22015 | C18: Pittman | D18: MacBook Air | E18: 1599 | F18: 159.9 | G18: 1439.1 | L18: ID-22015 | M18: Pittman | N18: MacBook Air | O18: 1599
D19: Total = | E19: =SUM(E6:E18) -> 15987 | F19: =SUM(F6:F18) -> 1598.7 | G19: 14388.3 | N19: Total = | O19: =SUM(O6:O18) -> 15987
B24: Back to Home Page

Sheet 2. Copy-Paste Command
B1: How to Apply Same Formula to Multiple Cells in Excel
B3: Use of Copy-Paste Command | L3: Try Yourself!
B5: Order ID | C5: Seller | D5: Product | E5: Price | F5: Commission (10%) | G5: Gross Revenue | L5: Order ID | M5: Seller | N5: Product | O5: Price | P5: Commission (10%) | Q5: Gross Revenue
B6: ID-22001 | C6: Pittman | D6: Dell XPS 13 | E6: 999 | F6: =E6*0.1 -> 99.9 | G6: =E6-F6 -> 899.1 | L6: ID-22001 | M6: Pittman | N6: Dell XPS 13 | O6: 999 | P6: =O6*0.1 -> 99.9 | Q6: =O6-P6 -> 899.1
B7: ID-22002 | C7: Clinton | D7: MacBook Air | E7: 1499 | F7: =E7*0.1 -> 149.9 | G7: =E7-F7 -> 1349.1 | L7: ID-22002 | M7: Clinton | N7: MacBook Air | O7: 1499
B8: ID-22003 | C8: Chester | D8: Dell XPS 13 | E8: 999 | F8: 99.9 | G8: 899.1 | L8: ID-22003 | M8: Chester | N8: Dell XPS 13 | O8: 999
B9: ID-22004 | C9: Rodney | D9: Dell XPS 13 | E9: 999 | F9: 99.9 | G9: 899.1 | L9: ID-22004 | M9: Rodney | N9: Dell XPS 13 | O9: 999
B10: ID-22006 | C10: Pittman | D10: HP x360 | E10: 1199 | F10: 119.9 | G10: 1079.1 | L10: ID-22006 | M10: Pittman | N10: HP x360 | O10: 1199
B11: ID-22007 | C11: Pittman | D11: Dell XPS 13 | E11: 999 | F11: 99.9 | G11: 899.1 | L11: ID-22007 | M11: Pittman | N11: Dell XPS 13 | O11: 999
B12: ID-22008 | C12: Clinton | D12: HP x360 | E12: 1199 | F12: 119.9 | G12: 1079.1 | L12: ID-22008 | M12: Clinton | N12: HP x360 | O12: 1199
B13: ID-22009 | C13: Chester | D13: Asus Zephyrus | E13: 1299 | F13: 129.9 | G13: 1169.1 | L13: ID-22009 | M13: Chester | N13: Asus Zephyrus | O13: 1299
B14: ID-22010 | C14: Pittman | D14: MacBook Air | E14: 1599 | F14: 159.9 | G14: 1439.1 | L14: ID-22010 | M14: Pittman | N14: MacBook Air | O14: 1599
B15: ID-22011 | C15: Clinton | D15: MacBook Air | E15: 1599 | F15: 159.9 | G15: 1439.1 | L15: ID-22011 | M15: Clinton | N15: MacBook Air | O15: 1599
B16: ID-22012 | C16: Chester | D16: Lenovo X1 | E16: 799 | F16: 79.9 | G16: 719.1 | L16: ID-22012 | M16: Chester | N16: Lenovo X1 | O16: 799
B17: ID-22014 | C17: Chester | D17: Dell XPS 13 | E17: 1199 | F17: 119.9 | G17: 1079.1 | L17: ID-22014 | M17: Chester | N17: Dell XPS 13 | O17: 1199
B18: ID-22015 | C18: Pittman | D18: MacBook Air | E18: 1599 | F18: 159.9 | G18: 1439.1 | L18: ID-22015 | M18: Pittman | N18: MacBook Air | O18: 1599
B25: Back to Home Page

Sheet 3.1 Ctrl + Enter
B1: How to Apply Same Formula to Multiple Cells
B3: Apply Formula to a Range of Cells with Ctrl + Enter | K3: Try Yourself!
B5: Order ID | C5: Seller | D5: Product | E5: Price | F5: Commission (10%) | K5: Order ID | L5: Seller | M5: Product | N5: Price | O5: Commission (10%)
B6: ID-22001 | C6: Pittman | D6: Dell XPS 13 | E6: 999 | F6: =E6*0.1 -> 99.9 | K6: ID-22001 | L6: Pittman | M6: Dell XPS 13 | N6: 999
B7: ID-22002 | C7: Clinton | D7: MacBook Air | E7: 1499 | F7: 149.9 | K7: ID-22002 | L7: Clinton | M7: MacBook Air | N7: 1499
B8: ID-22003 | C8: Chester | D8: Dell XPS 13 | E8: 999 | F8: 99.9 | K8: ID-22003 | L8: Chester | M8: Dell XPS 13 | N8: 999
B9: ID-22004 | C9: Rodney | D9: Dell XPS 13 | E9: 999 | F9: 99.9 | K9: ID-22004 | L9: Rodney | M9: Dell XPS 13 | N9: 999
B10: ID-22006 | C10: Pittman | D10: HP x360 | E10: 1199 | F10: 119.9 | K10: ID-22006 | L10: Pittman | M10: HP x360 | N10: 1199
B11: ID-22007 | C11: Pittman | D11: Dell XPS 13 | E11: 999 | F11: 99.9 | K11: ID-22007 | L11: Pittman | M11: Dell XPS 13 | N11: 999
B12: ID-22008 | C12: Clinton | D12: HP x360 | E12: 1199 | F12: 119.9 | K12: ID-22008 | L12: Clinton | M12: HP x360 | N12: 1199
B13: ID-22009 | C13: Chester | D13: Asus Zephyrus | E13: 1299 | F13: 129.9 | K13: ID-22009 | L13: Chester | M13: Asus Zephyrus | N13: 1299
B14: ID-22010 | C14: Pittman | D14: MacBook Air | E14: 1599 | F14: 159.9 | K14: ID-22010 | L14: Pittman | M14: MacBook Air | N14: 1599
B15: ID-22011 | C15: Clinton | D15: MacBook Air | E15: 1599 | F15: 159.9 | K15: ID-22011 | L15: Clinton | M15: MacBook Air | N15: 1599
B16: ID-22012 | C16: Chester | D16: Lenovo X1 | E16: 799 | F16: 79.9 | K16: ID-22012 | L16: Chester | M16: Lenovo X1 | N16: 799
B17: ID-22014 | C17: Chester | D17: Dell XPS 13 | E17: 1199 | F17: 119.9 | K17: ID-22014 | L17: Chester | M17: Dell XPS 13 | N17: 1199
B18: ID-22015 | C18: Pittman | D18: MacBook Air | E18: 1599 | F18: 159.9 | K18: ID-22015 | L18: Pittman | M18: MacBook Air | N18: 1599
B33: Back to Home Page

Sheet 3.2 Ctrl + D
B1: How to Apply Same Formula to Multiple Cells in Excel
B3: Apply Formula to Cells of a Column with Ctrl + D | K3: Try Yourself!
B5: Order ID | C5: Seller | D5: Product | E5: Price | F5: Commission (10%) | G5: Gross Revenue | K5: Order ID | L5: Seller | M5: Product | N5: Price | O5: Commission (10%) | P5: Gross Revenue
B6: ID-22001 | C6: Pittman | D6: Dell XPS 13 | E6: 999 | F6: =E6*0.1 -> 99.9 | G6: =E6-F6 -> 899.1 | K6: ID-22001 | L6: Pittman | M6: Dell XPS 13 | N6: 999 | O6: =N6*0.1 -> 99.9
B7: ID-22002 | C7: Clinton | D7: MacBook Air | E7: 1499 | F7: =E7*0.1 -> 149.9 | G7: =E7-F7 -> 1349.1 | K7: ID-22002 | L7: Clinton | M7: MacBook Air | N7: 1499 | O7: =N7*0.1 -> 149.9
B8: ID-22003 | C8: Chester | D8: Dell XPS 13 | E8: 999 | F8: =E8*0.1 -> 99.9 | G8: 899.1 | K8: ID-22003 | L8: Chester | M8: Dell XPS 13 | N8: 999 | O8: =N8*0.1 -> 99.9
B9: ID-22004 | C9: Rodney | D9: Dell XPS 13 | E9: 999 | F9: 99.9 | G9: 899.1 | K9: ID-22004 | L9: Rodney | M9: Dell XPS 13 | N9: 999 | O9: 99.9
B10: ID-22006 | C10: Pittman | D10: HP x360 | E10: 1199 | F10: 119.9 | G10: 1079.1 | K10: ID-22006 | L10: Pittman | M10: HP x360 | N10: 1199 | O10: 119.9
B11: ID-22007 | C11: Pittman | D11: Dell XPS 13 | E11: 999 | F11: 99.9 | G11: 899.1 | K11: ID-22007 | L11: Pittman | M11: Dell XPS 13 | N11: 999 | O11: 99.9
B12: ID-22008 | C12: Clinton | D12: HP x360 | E12: 1199 | F12: 119.9 | G12: 1079.1 | K12: ID-22008 | L12: Clinton | M12: HP x360 | N12: 1199 | O12: 119.9
B13: ID-22009 | C13: Chester | D13: Asus Zephyrus | E13: 1299 | F13: 129.9 | G13: 1169.1 | K13: ID-22009 | L13: Chester | M13: Asus Zephyrus | N13: 1299 | O13: 129.9
B14: ID-22010 | C14: Pittman | D14: MacBook Air | E14: 1599 | F14: 159.9 | G14: 1439.1 | K14: ID-22010 | L14: Pittman | M14: MacBook Air | N14: 1599 | O14: 159.9
B15: ID-22011 | C15: Clinton | D15: MacBook Air | E15: 1599 | F15: 159.9 | G15: 1439.1 | K15: ID-22011 | L15: Clinton | M15: MacBook Air | N15: 1599 | O15: 159.9
B16: ID-22012 | C16: Chester | D16: Lenovo X1 | E16: 799 | F16: 79.9 | G16: 719.1 | K16: ID-22012 | L16: Chester | M16: Lenovo X1 | N16: 799 | O16: 79.9
B17: ID-22014 | C17: Chester | D17: Dell XPS 13 | E17: 1199 | F17: 119.9 | G17: 1079.1 | K17: ID-22014 | L17: Chester | M17: Dell XPS 13 | N17: 1199 | O17: 119.9
B18: ID-22015 | C18: Pittman | D18: MacBook Air | E18: 1599 | F18: 159.9 | G18: 1439.1 | K18: ID-22015 | L18: Pittman | M18: MacBook Air | N18: 1599 | O18: 159.9
B42: Back to Home Page

Sheet 3.3 Ctrl + R
B1: How to Apply Same Formula to Multiple Cells in Excel
B3: Apply Formula to Cells Along a Row with Ctrl + R | J3: Try Yourself!
B5: Order ID | C5: Seller | D5: Product | E5: Price | F5: Commission (10%) | G5: Gross Revenue | J5: Order ID | K5: Seller | L5: Product | M5: Price | N5: Commission (10%) | O5: Gross Revenue
B6: ID-22001 | C6: Pittman | D6: Dell XPS 13 | E6: 999 | F6: =E6*0.1 -> 99.9 | G6: =E6-F6 -> 899.1 | J6: ID-22001 | K6: Pittman | L6: Dell XPS 13 | M6: 999 | N6: =M6*0.1 -> 99.9 | O6: =M6-N6 -> 899.1
B7: ID-22002 | C7: Clinton | D7: MacBook Air | E7: 1499 | F7: 149.9 | G7: =E7-F7 -> 1349.1 | J7: ID-22002 | K7: Clinton | L7: MacBook Air | M7: 1499 | N7: 149.9 | O7: =M7-N7 -> 1349.1
B8: ID-22003 | C8: Chester | D8: Dell XPS 13 | E8: 999 | F8: 99.9 | G8: 899.1 | J8: ID-22003 | K8: Chester | L8: Dell XPS 13 | M8: 999 | N8: 99.9 | O8: 899.1
B9: ID-22004 | C9: Rodney | D9: Dell XPS 13 | E9: 999 | F9: 99.9 | G9: 899.1 | J9: ID-22004 | K9: Rodney | L9: Dell XPS 13 | M9: 999 | N9: 99.9 | O9: 899.1
B10: ID-22006 | C10: Pittman | D10: HP x360 | E10: 1199 | F10: 119.9 | G10: 1079.1 | J10: ID-22006 | K10: Pittman | L10: HP x360 | M10: 1199 | N10: 119.9 | O10: 1079.1
B11: ID-22007 | C11: Pittman | D11: Dell XPS 13 | E11: 999 | F11: 99.9 | G11: 899.1 | J11: ID-22007 | K11: Pittman | L11: Dell XPS 13 | M11: 999 | N11: 99.9 | O11: 899.1
B12: ID-22008 | C12: Clinton | D12: HP x360 | E12: 1199 | F12: 119.9 | G12: 1079.1 | J12: ID-22008 | K12: Clinton | L12: HP x360 | M12: 1199 | N12: 119.9 | O12: 1079.1
B13: ID-22009 | C13: Chester | D13: Asus Zephyrus | E13: 1299 | F13: 129.9 | G13: 1169.1 | J13: ID-22009 | K13: Chester | L13: Asus Zephyrus | M13: 1299 | N13: 129.9 | O13: 1169.1
B14: ID-22010 | C14: Pittman | D14: MacBook Air | E14: 1599 | F14: 159.9 | G14: 1439.1 | J14: ID-22010 | K14: Pittman | L14: MacBook Air | M14: 1599 | N14: 159.9 | O14: 1439.1
B15: ID-22011 | C15: Clinton | D15: MacBook Air | E15: 1599 | F15: 159.9 | G15: 1439.1 | J15: ID-22011 | K15: Clinton | L15: MacBook Air | M15: 1599 | N15: 159.9 | O15: 1439.1
B16: ID-22012 | C16: Chester | D16: Lenovo X1 | E16: 799 | F16: 79.9 | G16: 719.1 | J16: ID-22012 | K16: Chester | L16: Lenovo X1 | M16: 799 | N16: 79.9 | O16: 719.1
B17: ID-22014 | C17: Chester | D17: Dell XPS 13 | E17: 1199 | F17: 119.9 | G17: 1079.1 | J17: ID-22014 | K17: Chester | L17: Dell XPS 13 | M17: 1199 | N17: 119.9 | O17: 1079.1
B18: ID-22015 | C18: Pittman | D18: MacBook Air | E18: 1599 | F18: 159.9 | G18: 1439.1 | J18: ID-22015 | K18: Pittman | L18: MacBook Air | M18: 1599 | N18: 159.9 | O18: 1439.1
D19: Total = | E19: =SUM(E6:E18) -> 15987 | F19: =SUM(F6:F18) -> 1598.7 | G19: 14388.3 | L19: Total =

Sheet 4. Dynamic Arrays
B1: How to Apply Same Formula to Multiple Cells in Excel
B3: Use Dynamic Arrays | L3: Try Yourself!
B5: Order ID | C5: Seller | D5: Product | E5: Price | F5: Commission (10%) | G5: Gross Revenue | L5: Order ID | M5: Seller | N5: Product | O5: Price | P5: Commission (10%) | Q5: Gross Revenue
B6: ID-22001 | C6: Pittman | D6: Dell XPS 13 | E6: 999 | F6: =E6:E18*0.1 -> 99.9 | G6: =E6:E18-_xlfn.ANCHORARRAY(F6) -> 899.1 | L6: ID-22001 | M6: Pittman | N6: Dell XPS 13 | O6: 999
B7: ID-22002 | C7: Clinton | D7: MacBook Air | E7: 1499 | F7: 149.9 | G7: 1349.1 | L7: ID-22002 | M7: Clinton | N7: MacBook Air | O7: 1499
B8: ID-22003 | C8: Chester | D8: Dell XPS 13 | E8: 999 | F8: 99.9 | G8: 899.1 | L8: ID-22003 | M8: Chester | N8: Dell XPS 13 | O8: 999
B9: ID-22004 | C9: Rodney | D9: Dell XPS 13 | E9: 999 | F9: 99.9 | G9: 899.1 | L9: ID-22004 | M9: Rodney | N9: Dell XPS 13 | O9: 999
B10: ID-22006 | C10: Pittman | D10: HP x360 | E10: 1199 | F10: 119.9 | G10: 1079.1 | L10: ID-22006 | M10: Pittman | N10: HP x360 | O10: 1199
B11: ID-22007 | C11: Pittman | D11: Dell XPS 13 | E11: 999 | F11: 99.9 | G11: 899.1 | L11: ID-22007 | M11: Pittman | N11: Dell XPS 13 | O11: 999
B12: ID-22008 | C12: Clinton | D12: HP x360 | E12: 1199 | F12: 119.9 | G12: 1079.1 | L12: ID-22008 | M12: Clinton | N12: HP x360 | O12: 1199
B13: ID-22009 | C13: Chester | D13: Asus Zephyrus | E13: 1299 | F13: 129.9 | G13: 1169.1 | L13: ID-22009 | M13: Chester | N13: Asus Zephyrus | O13: 1299
B14: ID-22010 | C14: Pittman | D14: MacBook Air | E14: 1599 | F14: 159.9 | G14: 1439.1 | L14: ID-22010 | M14: Pittman | N14: MacBook Air | O14: 1599
B15: ID-22011 | C15: Clinton | D15: MacBook Air | E15: 1599 | F15: 159.9 | G15: 1439.1 | L15: ID-22011 | M15: Clinton | N15: MacBook Air | O15: 1599
B16: ID-22012 | C16: Chester | D16: Lenovo X1 | E16: 799 | F16: 79.9 | G16: 719.1 | L16: ID-22012 | M16: Chester | N16: Lenovo X1 | O16: 799
B17: ID-22014 | C17: Chester | D17: Dell XPS 13 | E17: 1199 | F17: 119.9 | G17: 1079.1 | L17: ID-22014 | M17: Chester | N17: Dell XPS 13 | O17: 1199
B18: ID-22015 | C18: Pittman | D18: MacBook Air | E18: 1599 | F18: 159.9 | G18: 1439.1 | L18: ID-22015 | M18: Pittman | N18: MacBook Air | O18: 1599
B33: Back to Home Page

Sheet 5. Convert into table
B1: How to Apply Same Formula to Multiple Cells in Excel
B3: Convert Data to Excel Table to Apply Same Formula to Entire Column | K3: Try Yourself!
B5: Order ID | C5: Seller | D5: Product | E5: Price | F5: Commission (10%) | G5: Gross Revenue | K5: Order ID | L5: Seller | M5: Product | N5: Price | O5: Commission (10%) | P5: Gross Revenue
B6: ID-22001 | C6: Pittman | D6: Dell XPS 13 | E6: 999 | F6: =E6*0.1 -> 99.9 | G6: =E6-F6 -> 899.1 | K6: ID-22001 | L6: Pittman | M6: Dell XPS 13 | N6: 999
B7: ID-22002 | C7: Clinton | D7: MacBook Air | E7: 1499 | F7: 149.9 | G7: 1349.1 | K7: ID-22002 | L7: Clinton | M7: MacBook Air | N7: 1499
B8: ID-22003 | C8: Chester | D8: Dell XPS 13 | E8: 999 | F8: 99.9 | G8: 899.1 | K8: ID-22003 | L8: Chester | M8: Dell XPS 13 | N8: 999
B9: ID-22004 | C9: Rodney | D9: Dell XPS 13 | E9: 999 | F9: 99.9 | G9: 899.1 | K9: ID-22004 | L9: Rodney | M9: Dell XPS 13 | N9: 999
B10: ID-22006 | C10: Pittman | D10: HP x360 | E10: 1199 | F10: 119.9 | G10: 1079.1 | K10: ID-22006 | L10: Pittman | M10: HP x360 | N10: 1199
B11: ID-22007 | C11: Pittman | D11: Dell XPS 13 | E11: 999 | F11: 99.9 | G11: 899.1 | K11: ID-22007 | L11: Pittman | M11: Dell XPS 13 | N11: 999
B12: ID-22008 | C12: Clinton | D12: HP x360 | E12: 1199 | F12: 119.9 | G12: 1079.1 | K12: ID-22008 | L12: Clinton | M12: HP x360 | N12: 1199
B13: ID-22009 | C13: Chester | D13: Asus Zephyrus | E13: 1299 | F13: 129.9 | G13: 1169.1 | K13: ID-22009 | L13: Chester | M13: Asus Zephyrus | N13: 1299
B14: ID-22010 | C14: Pittman | D14: MacBook Air | E14: 1599 | F14: 159.9 | G14: 1439.1 | K14: ID-22010 | L14: Pittman | M14: MacBook Air | N14: 1599
B15: ID-22011 | C15: Clinton | D15: MacBook Air | E15: 1599 | F15: 159.9 | G15: 1439.1 | K15: ID-22011 | L15: Clinton | M15: MacBook Air | N15: 1599
B16: ID-22012 | C16: Chester | D16: Lenovo X1 | E16: 799 | F16: 79.9 | G16: 719.1 | K16: ID-22012 | L16: Chester | M16: Lenovo X1 | N16: 799
B17: ID-22014 | C17: Chester | D17: Dell XPS 13 | E17: 1199 | F17: 119.9 | G17: 1079.1 | K17: ID-22014 | L17: Chester | M17: Dell XPS 13 | N17: 1199
B18: ID-22015 | C18: Pittman | D18: MacBook Air | E18: 1599 | F18: 159.9 | G18: 1439.1 | K18: ID-22015 | L18: Pittman | M18: MacBook Air | N18: 1599
B19: Total | E19: =SUBTOTAL(109,Table1[Price]) -> 15987 | F19: =SUBTOTAL(109,Table1[Commission (10%)]) -> 1598.7 | G19: =SUBTOTAL(109,Table1[Gross Revenue]) -> 14388.3
B33: Back to Home Page

Sheet 6. VBA
B1: How to Apply Same Formula to Multiple Cells in Excel
B3: Use Excel VBA | J3: Try Yourself!
B5: Order ID | C5: Seller | D5: Product | E5: Price | F5: Commission (10%) | G5: Gross Revenue | J5: Order ID | K5: Seller | L5: Product | M5: Price | N5: Commission (10%) | O5: Gross Revenue
B6: ID-22001 | C6: Pittman | D6: Dell XPS 13 | E6: 999 | F6: =E6*0.1 -> 99.9 | G6: =E6-F6 -> 899.1 | J6: ID-22001 | K6: Pittman | L6: Dell XPS 13 | M6: 999
B7: ID-22002 | C7: Clinton | D7: MacBook Air | E7: 1499 | F7: 149.9 | G7: 1349.1 | J7: ID-22002 | K7: Clinton | L7: MacBook Air | M7: 1499
B8: ID-22003 | C8: Chester | D8: Dell XPS 13 | E8: 999 | F8: 99.9 | G8: 899.1 | J8: ID-22003 | K8: Chester | L8: Dell XPS 13 | M8: 999
B9: ID-22004 | C9: Rodney | D9: Dell XPS 13 | E9: 999 | F9: 99.9 | G9: 899.1 | J9: ID-22004 | K9: Rodney | L9: Dell XPS 13 | M9: 999
B10: ID-22006 | C10: Pittman | D10: HP x360 | E10: 1199 | F10: 119.9 | G10: 1079.1 | J10: ID-22006 | K10: Pittman | L10: HP x360 | M10: 1199
B11: ID-22007 | C11: Pittman | D11: Dell XPS 13 | E11: 999 | F11: 99.9 | G11: 899.1 | J11: ID-22007 | K11: Pittman | L11: Dell XPS 13 | M11: 999
B12: ID-22008 | C12: Clinton | D12: HP x360 | E12: 1199 | F12: 119.9 | G12: 1079.1 | J12: ID-22008 | K12: Clinton | L12: HP x360 | M12: 1199
B13: ID-22009 | C13: Chester | D13: Asus Zephyrus | E13: 1299 | F13: 129.9 | G13: 1169.1 | J13: ID-22009 | K13: Chester | L13: Asus Zephyrus | M13: 1299
B14: ID-22010 | C14: Pittman | D14: MacBook Air | E14: 1599 | F14: 159.9 | G14: 1439.1 | J14: ID-22010 | K14: Pittman | L14: MacBook Air | M14: 1599
B15: ID-22011 | C15: Clinton | D15: MacBook Air | E15: 1599 | F15: 159.9 | G15: 1439.1 | J15: ID-22011 | K15: Clinton | L15: MacBook Air | M15: 1599
B16: ID-22012 | C16: Chester | D16: Lenovo X1 | E16: 799 | F16: 79.9 | G16: 719.1 | J16: ID-22012 | K16: Chester | L16: Lenovo X1 | M16: 799
B17: ID-22014 | C17: Chester | D17: Dell XPS 13 | E17: 1199 | F17: 119.9 | G17: 1079.1 | J17: ID-22014 | K17: Chester | L17: Dell XPS 13 | M17: 1199
B18: ID-22015 | C18: Pittman | D18: MacBook Air | E18: 1599 | F18: 159.9 | G18: 1439.1 | J18: ID-22015 | K18: Pittman | L18: MacBook Air | M18: 1599
B19: Back to Home Page

Sheet Without Changing Cell Ref
B1: How to Copy a Range of Formulas Without Changing Cell References
B3: Order ID | C3: Seller | D3: Product | E3: Price | F3: Commission (10%) | G3: Gross Revenue | I3: Commission (10%) | J3: Gross Revenue
B4: ID-22001 | C4: Pittman | D4: Dell XPS 13 | E4: 1010 | F4: =E4*0.1 -> 101 | G4: =E4-F4 -> 909 | I4: =E4*0.1 -> 101 | J4: =E4-F4 -> 909
B5: ID-22002 | C5: Clinton | D5: MacBook Air | E5: 1499 | F5: =E4*0.1 -> 101 | G5: =E5-F5 -> 1398 | I5: =E4*0.1 -> 101 | J5: 1398
B6: ID-22003 | C6: Chester | D6: Dell XPS 13 | E6: 999 | F6: =E5*0.1 -> 149.9 | G6: 849.1 | I6: =E5*0.1 -> 149.9 | J6: 849.1
B7: ID-22004 | C7: Rodney | D7: Dell XPS 14 | E7: 999 | F7: =E6*0.1 -> 99.9 | G7: 899.1 | I7: =E6*0.1 -> 99.9 | J7: 899.1
B8: ID-22006 | C8: Pittman | D8: HP x360 | E8: 1199 | F8: =E6*0.1 -> 99.9 | G8: 1099.1 | I8: =E6*0.1 -> 99.9 | J8: 1099.1
B9: ID-22007 | C9: Pittman | D9: Dell XPS 13 | E9: 999 | F9: =E7*0.1 -> 99.9 | G9: 899.1 | I9: =E7*0.1 -> 99.9 | J9: 899.1
B10: ID-22008 | C10: Clinton | D10: HP x360 | E10: 1199 | F10: 119.9 | G10: 1079.1 | I10: =E8*0.1 -> 119.9 | J10: 1079.1
B11: ID-22009 | C11: Chester | D11: Asus Zephyrus | E11: 1299 | F11: 99.9 | G11: 1199.1 | I11: =E9*0.1 -> 99.9 | J11: 1199.1
B12: ID-22010 | C12: Pittman | D12: MacBook Air | E12: 1599 | F12: 119.9 | G12: 1479.1 | I12: =E10*0.1 -> 119.9 | J12: 1479.1
B13: ID-22011 | C13: Clinton | D13: MacBook Air | E13: 1599 | F13: =E9*0.1 -> 99.9 | G13: 1499.1 | I13: =E9*0.1 -> 99.9 | J13: 1499.1
B14: ID-22012 | C14: Chester | D14: Lenovo X1 | E14: 799 | F14: =E10*0.1 -> 119.9 | G14: 679.1 | I14: =E10*0.1 -> 119.9 | J14: 679.1
B15: ID-22014 | C15: Chester | D15: Dell XPS 13 | E15: 1199 | F15: =E11*0.1 -> 129.9 | G15: 1069.1 | I15: =E11*0.1 -> 129.9 | J15: 1069.1
B16: ID-22015 | C16: Pittman | D16: MacBook Air | E16: 1599 | F16: =E12*0.1 -> 159.9 | G16: 1439.1 | I16: =E12*0.1 -> 159.9 | J16: 1439.1
B22: Back to Home Page

Sheet Change Formulas Multiple Cells
B1: How to Change Formulas in Multiple Cells at Once
B3: Order ID | C3: Seller | D3: Product | E3: Price | F3: Commission (10%) | G3: Gross Revenue
B4: ID-22001 | C4: Pittman | D4: Dell XPS 13 | E4: 999 | F4: =E4*0.5 -> 499.5 | G4: =E4-F4 -> 499.5
B5: ID-22002 | C5: Clinton | D5: MacBook Air | E5: 1499 | F5: =E4*0.5 -> 499.5 | G5: =E5-F5 -> 999.5
B6: ID-22003 | C6: Chester | D6: Dell XPS 13 | E6: 999 | F6: =E5*0.5 -> 749.5 | G6: 249.5
B7: ID-22004 | C7: Rodney | D7: Dell XPS 14 | E7: 999 | F7: =E6*0.5 -> 499.5 | G7: 499.5
B8: ID-22006 | C8: Pittman | D8: HP x360 | E8: 1199 | F8: =E6*0.5 -> 499.5 | G8: 699.5
B9: ID-22007 | C9: Pittman | D9: Dell XPS 13 | E9: 999 | F9: =E7*0.5 -> 499.5 | G9: 499.5
B10: ID-22008 | C10: Clinton | D10: HP x360 | E10: 1199 | F10: =E8*0.5 -> 599.5 | G10: 599.5
B11: ID-22009 | C11: Chester | D11: Asus Zephyrus | E11: 1299 | F11: =E9*0.5 -> 499.5 | G11: 799.5
B12: ID-22010 | C12: Pittman | D12: MacBook Air | E12: 1599 | F12: =E10*0.5 -> 599.5 | G12: 999.5
B13: ID-22011 | C13: Clinton | D13: MacBook Air | E13: 1599 | F13: =E9*0.5 -> 499.5 | G13: 1099.5
B14: ID-22012 | C14: Chester | D14: Lenovo X1 | E14: 799 | F14: =E10*0.5 -> 599.5 | G14: 199.5
B15: ID-22014 | C15: Chester | D15: Dell XPS 13 | E15: 1199 | F15: =E11*0.5 -> 649.5 | G15: 549.5
B16: ID-22015 | C16: Pittman | D16: MacBook Air | E16: 1599 | F16: =E12*0.5 -> 799.5 | G16: 799.5
B22: Back to Home Page

Sheet Blank Cell
B1: How to Apply Same Formula to Multiple Cells in Excel Based on Selection
B3: Order ID | C3: Seller | D3: Product | E3: Price | F3: Commission (10%) | G3: Gross Revenue
B4: ID-22001 | C4: Pittman | D4: Dell XPS 13 | E4: 999 | F4: =E4*0.1 -> 99.9 | G4: =E4-F4 -> 899.1
B5: ID-22002 | C5: Clinton | D5: MacBook Air | E5: 1499 | F5: =E5*0.1 -> 149.9 | G5: =E5-F5 -> 1349.1
B6: ID-22003 | C6: Chester | D6: Dell XPS 13 | E6: 999 | F6: 99.9 | G6: 899.1
B7: ID-22004 | C7: Rodney | D7: =D6 -> Dell XPS 13 | E7: 999 | F7: 99.9 | G7: 899.1
B8: ID-22006 | C8: Pittman | D8: HP x360 | E8: 1199 | F8: 119.9 | G8: 1079.1
B9: ID-22007 | C9: =C8 -> Pittman | D9: Dell XPS 13 | E9: 999 | F9: 99.9 | G9: 899.1
B10: ID-22008 | C10: Clinton | D10: HP x360 | E10: 1199 | F10: 119.9 | G10: 1079.1
B11: ID-22009 | C11: Chester | D11: Asus Zephyrus | E11: 1299 | F11: 129.9 | G11: 1169.1
B12: ID-22010 | C12: Pittman | D12: MacBook Air | E12: 1599 | F12: 159.9 | G12: 1439.1
B13: ID-22011 | C13: Clinton | D13: =D12 -> MacBook Air | E13: 1599 | F13: 159.9 | G13: 1439.1
B14: ID-22012 | C14: Chester | D14: Lenovo X1 | E14: 799 | F14: 79.9 | G14: 719.1
B15: ID-22014 | C15: =C14 -> Chester | D15: Dell XPS 13 | E15: 1199 | F15: 119.9 | G15: 1079.1
B16: ID-22015 | C16: Pittman | D16: MacBook Air | E16: 1599 | F16: 159.9 | G16: 1439.1
D17: Total = | E17: =SUM(E4:E16) -> 15987 | F17: =SUM(F4:F16) -> 1598.7 | G17: =SUM(G4:G16) -> 14388.3
B25: Back to Home Page

Sheet Non-Adjacent Cells
B1: How to Apply Same Formula to Multiple Non-Adjacent Cells in Excel
B3: List 1 | D3: List 2 | F3: List 3
B4: 71 | D4: 79 | F4: 85
B5: 97 | D5: 41 | F5: 82
B6: 65 | D6: 65 | F6: 53
B7: 76 | D7: 12 | F7: 15
B8: 81 | D8: 61 | F8: 60
B9: 59 | D9: 24 | F9: 100
B10: 95 | D10: 56 | F10: 28
B11: 68 | D11: 98 | F11: 57
B12: 92 | D12: 59 | F12: 32
B13: 21 | D13: 89 | F13: 74
B14: 20 | D14: 26 | F14: 34
B15: 66 | D15: 70 | F15: 79
B16: =SUM(B4:B15) -> 811 | D16: =SUM(D4:D15) -> 680 | F16: =SUM(F4:F15) -> 699
B20: Back to Home Page
B36: =SUM(1,2,3) -> 6
D37: =SUM(1,2,3) -> 6
C39: =SUM(1,2,3) -> 6
D41: =SUM(1,2,3) -> 6
